bitfinex/quotes_ETHUSD_20230109
["timestamp","ask_amount","ask_price","bid_price","bid_amount"]
[1673285829011,5.07889861,1340.0,1339.9,0.1091931]
[1673285829228,12.54157861,1340.0,1339.9,0.1091931]
[1673285829375,5.9743554,1340.0,1339.9,0.1091931]
[1673285830849,6.5342554,1340.0,1339.9,0.1091931]
[1673285831710,8.76376571,1340.0,1339.9,7.5724331]
[1673285831927,5.63860283,1340.0,1339.9,22.5649131]
[1673285832135,2.85541031,1340.0,1339.9,22.5649131]
[1673285832346,2.23220426,1340.0,1339.9,22.5649131]
[1673285832524,4.46171457,1340.0,1339.9,22.5649131]
[1673285832735,2.23220426,1340.0,1339.9,22.5649131]
[1673285832943,4.46171457,1340.0,1339.9,22.5649131]
[1673285833902,4.46236408,1340.0,1339.9,22.5649131]
[1673285834329,2.78941031,1340.0,1339.9,22.5649131]
[1673285835095,4.4627543,1340.0,1339.9,22.5649131]
[1673285835324,2.23324399,1340.0,1339.9,22.5649131]
[1673285835621,4.4627543,1340.0,1339.9,22.5649131]
[1673285836883,2.78919997,1340.0,1339.9,22.5649131]
[1673285837286,1.11585598,1340.0,1339.9,22.5649131]
[1673285837900,1.11585598,1340.0,1339.9,26.36257374]
[1673285838101,3.9688543,1340.1,1339.9,26.59257374]
[1673285838102,1.18185598,1340.1,1339.9,26.59257374]
[1673285838359,1.11585598,1340.1,1339.9,26.59257374]
[1673285838571,1.11585598,1340.1,1340.0,29.68570064]
[1673285838742,1.11585598,1340.1,1340.0,29.98170064]
[1673285838945,2.78919997,1340.2,1340.0,29.98170064]
[1673285839396,1.11585598,1340.2,1340.1,3.79766064]
[1673285839606,2.78955345,1340.3,1340.2,25.88471]
[1673285839836,1.67334399,1340.3,1340.2,22.45071]
[1673285840209,2.97347706,1340.3,1340.2,22.45071]
[1673285840412,4.0868543,1340.3,1340.2,22.45071]
[1673285840644,4.0868543,1340.3,1340.2,0.066]
[1673285840887,2.41351031,1340.3,1340.1,7.52812]
[1673285841053,2.78903379,1340.2,1340.1,14.99024]
[1673285841255,1.67342027,1340.2,1340.1,7.52812]
[1673285841461,1.67342027,1340.2,1340.1,14.99024]
[1673285841834,3.40241242,1340.2,1340.1,14.99024]
[1673285841991,3.40241242,1340.2,1340.1,22.45236]
[1673285842413,2.28690422,1340.2,1340.1,22.45236]
[1673285842747,3.40235367,1340.2,1340.1,22.45236]
[1673285842940,2.28690422,1340.2,1340.1,22.45236]
[1673285843150,2.28690422,1340.2,1340.1,14.99024]
[1673285843362,2.28690422,1340.2,1340.1,22.45236]
[1673285843587,2.33690422,1340.2,1340.1,14.99024]
[1673285843794,2.28690422,1340.2,1340.1,14.99024]
[1673285844113,3.40227386,1340.2,1340.1,14.99024]
[1673285844328,3.40226903,1340.2,1340.1,14.99024]
[1673285844549,2.28690422,1340.2,1340.1,14.99024]
[1673285844882,3.40225957,1340.2,1340.1,14.99024]
[1673285845042,3.35225957,1340.2,1340.1,22.45236]
[1673285845254,3.35225957,1340.2,1340.1,14.99024]
[1673285845500,2.23690422,1340.2,1340.1,14.99024]
[1673285845828,3.35250275,1340.2,1340.1,14.99024]
[1673285847617,3.35250275,1340.2,1340.1,22.45236]
[1673285847788,3.35250275,1340.2,1340.1,14.99024]
[1673285847987,3.35250275,1340.2,1340.1,22.45236]
[1673285848199,3.35250275,1340.2,1340.1,14.99024]
[1673285848522,3.35250275,1340.2,1340.1,22.45236]
[1673285848948,3.35250275,1340.2,1340.1,14.99024]
[1673285849344,3.35250275,1340.2,1340.1,22.45236]
[1673285849559,3.35250275,1340.2,1340.1,14.99024]
[1673285850818,2.23690422,1340.2,1340.1,7.52812]
[1673285851030,4.46641453,1340.2,1340.1,7.52812]
[1673285851294,4.46641453,1340.2,1340.1,22.45236]
[1673285851452,4.46641453,1340.2,1340.1,14.99024]
[1673285851659,3.59295497,1340.2,1340.1,0.066]
[1673285851866,21.29725712,1340.2,1339.9,21.5087131]
[1673285852138,1.11557695,1340.0,1339.9,36.4345931]
[1673285852303,1.11557695,1340.0,1339.9,22.5638931]
[1673285855235,1.11557695,1340.0,1339.9,22.57816012]
[1673285855446,1.11557695,1340.1,1339.9,26.07816012]
[1673285855669,1.11557695,1340.1,1339.9,29.87582076]
[1673285856016,1.72538243,1340.2,1340.1,22.38636]
[1673285856179,1.72538243,1340.2,1340.1,22.46662489]
[1673285857236,0.60980548,1340.2,1340.1,22.46662489]
[1673285857655,1.72538243,1340.2,1340.1,22.46662489]
[1673285858609,0.60980548,1340.2,1340.1,22.46662489]
[1673285859050,1.67538243,1340.2,1340.1,22.46662489]
[1673285859251,0.55980548,1340.2,1340.1,22.46662489]
[1673285859892,1.67538243,1340.2,1340.1,22.46662489]
[1673285863801,1.67738243,1340.2,1340.1,22.46462489]
[1673285864131,0.55980548,1340.2,1340.1,22.46662489]
[1673285871587,1.67738243,1340.2,1340.1,22.46462489]
[1673285871820,1.67538243,1340.2,1340.1,22.46662489]
[1673285872735,3.34873863,1340.2,1340.1,22.46662489]
[1673285873383,1.67538243,1340.2,1340.1,22.46662489]
[1673285873701,3.34873863,1340.2,1340.1,22.46662489]
[1673285874485,1.67538243,1340.2,1340.1,22.46662489]
[1673285874699,3.34873863,1340.2,1340.1,22.46662489]
[1673285875334,1.67538243,1340.2,1340.1,22.46662489]
[1673285875548,3.34873863,1340.2,1340.1,22.46662489]
[1673285877466,1.67538243,1340.2,1340.1,22.46662489]
[1673285878327,1.67678451,1340.2,1340.1,26.26428553]
[1673285878639,0.25,1340.3,1340.2,4.61697903]
[1673285878965,0.184,1340.3,1340.2,49.52896633]
[1673285879282,0.184,1340.3,1340.2,52.37239132]
[1673285879854,0.184,1340.3,1340.2,38.37239132]
[1673285880103,0.184,1340.3,1340.2,52.37239132]
[1673285881878,0.184,1340.3,1340.2,49.59496633]
[1673285882074,0.184,1340.3,1340.2,52.37216451]
[1673285882287,0.184,1340.3,1340.2,52.37215494]
[1673285882517,0.184,1340.3,1340.2,51.05312513]
[1673285882723,0.184,1340.3,1340.2,49.72412513]
[1673285883569,0.184,1340.3,1340.2,46.94696633]
[1673285883949,0.184,1340.3,1340.2,45.09534967]
[1673285884403,0.184,1340.3,1340.2,41.59534967]
[1673285885036,0.184,1340.3,1340.2,37.56768903]
[1673285887467,0.184,1340.3,1340.2,41.36534967]
[1673285888307,0.184,1340.3,1340.2,41.59534967]
[1673285889841,0.184,1340.3,1340.2,41.36534967]
[1673285890979,1.30097903,1340.3,1340.2,41.36534967]
[1673285891363,0.184,1340.3,1340.2,41.36534967]
[1673285892538,1.30097903,1340.3,1340.2,41.36534967]
[1673285894666,2.97328915,1340.3,1340.2,1.18297903]
[1673285894822,1.8573562,1340.3,1340.2,1.11697903]
[1673285895033,2.97329337,1340.3,1340.2,8.57854903]
[1673285895281,2.97329337,1340.3,1340.2,8.64454903]
[1673285895282,1.8573562,1340.3,1340.2,8.64454903]
[1673285895717,4.08851461,1340.3,1340.2,8.64454903]
[1673285895922,4.08851461,1340.3,1340.2,1.18297903]
[1673285896109,4.08851461,1340.3,1340.2,1.11697903]
[1673285896323,11.54952461,1340.3,1340.2,1.11697903]
[1673285896671,11.61552461,1340.3,1340.2,1.11697903]
[1673285896825,29.52551432,1340.3,1340.2,1.11697903]
[1673285897473,22.06450432,1340.3,1340.2,1.11697903]
[1673285897713,22.06547764,1340.3,1340.2,1.11697903]
[1673285897880,20.39114812,1340.3,1340.2,1.11697903]
[1673285898096,27.85215812,1340.3,1340.2,1.11697903]
[1673285898301,23.17434064,1340.3,1340.2,1.11697903]
[1673285898659,12.93013812,1340.3,1340.2,1.11697903]
[1673285899391,12.93013812,1340.3,1340.2,1.11376339]
[1673285900445,7.14384603,1340.3,1340.2,1.11376339]
[1673285901275,5.46912812,1340.3,1340.2,1.11376339]
[1673285901471,7.14374986,1340.3,1340.2,1.11376339]
[1673285902095,5.46912812,1340.3,1340.2,1.11376339]
[1673285903069,15.71333064,1340.3,1340.2,1.11376339]
[1673285903281,17.04133064,1340.3,1340.2,1.11376339]
[1673285903588,6.79712812,1340.3,1340.2,1.11376339]
[1673285903907,9.58032064,1340.3,1340.2,1.11376339]
[1673285905384,17.04133064,1340.3,1340.2,1.11376339]
[1673285906186,9.58032064,1340.3,1340.2,1.11376339]
[1673285906400,24.50234064,1340.3,1340.2,1.11376339]
[1673285907370,17.04133064,1340.3,1340.2,1.11376339]
[1673285907573,24.50234064,1340.3,1340.2,1.11376339]
[1673285908484,17.04133064,1340.3,1340.2,1.11376339]
[1673285908690,22.27118223,1340.3,1340.2,1.11376339]
[1673285909442,29.73219223,1340.3,1340.2,1.11376339]
[1673285909854,30.29199223,1340.3,1340.2,1.11376339]
[1673285913269,32.58190965,1340.3,1340.2,1.11376339]
[1673285913436,39.72229531,1340.3,1340.2,1.11376339]
[1673285913863,35.97818537,1340.3,1340.2,1.11376339]
[1673285914374,32.63546035,1340.3,1340.2,1.11376339]
[1673285916505,35.42405788,1340.3,1340.2,1.11376339]
[1673285916910,34.09605788,1340.3,1340.2,1.11376339]
[1673285918378,34.09605788,1340.3,1339.9,0.1091931]
[1673285918576,10.25018474,1340.1,1339.9,0.1091931]
[1673285918797,10.31618474,1340.1,1339.9,0.1091931]
[1673285919207,10.31618474,1340.1,1339.9,7.5723931]
[1673285919419,10.31618474,1340.1,1339.9,7.6383931]
[1673285920264,10.31618474,1340.1,1339.9,0.1751931]
[1673285920473,10.31618474,1340.1,1339.9,0.1091931]
[1673285920728,10.31618474,1340.1,1339.9,7.5724031]
[1673285920973,10.31618474,1340.1,1339.9,7.6384031]
[1673285922646,10.31618474,1340.1,1339.9,7.6346391]
[1673285923066,17.77835474,1340.1,1339.9,0.1714291]
[1673285923374,21.33369672,1340.1,1339.9,0.1054291]
[1673285923956,1.1152059,1340.0,1339.9,7.5686391]
[1673285924198,1.1152059,1340.0,1339.9,7.6346391]
[1673285924396,1.1152059,1340.0,1339.9,0.1714291]
[1673285924642,1.1152059,1340.0,1339.9,0.1054291]
[1673285925756,16.0405659,1340.0,1339.9,0.1054291]
[1673285925954,19.95552475,1340.0,1339.9,0.1054291]
[1673285926332,28.53570769,1340.0,1339.9,0.1054291]
[1673285926723,29.65116158,1340.0,1339.9,0.1054291]
[1673285927146,27.97835274,1340.0,1339.9,0.1054291]
[1673285927537,29.65116158,1340.0,1339.9,0.1054291]
[1673285927871,27.97835274,1340.0,1339.9,0.1054291]
[1673285928087,29.65116158,1340.0,1339.9,0.1054291]
[1673285928467,28.53570769,1340.0,1339.9,0.1054291]
[1673285929375,30.76611948,1340.0,1339.9,0.1054291]
[1673285930319,28.53570769,1340.0,1339.9,0.1054291]
[1673285931216,30.76611948,1340.0,1339.9,0.1054291]
[1673285933549,23.30343948,1340.0,1339.9,0.1054291]
[1673285934161,21.63063064,1340.0,1339.9,0.1054291]
[1673285934411,30.76667778,1340.0,1339.9,0.1054291]
[1673285934744,29.09331064,1340.0,1339.9,0.1054291]
[1673285935519,21.63063064,1340.0,1339.9,0.1054291]
[1673285936033,15.84135192,1340.0,1339.9,0.1054291]
[1673285936158,8.37867192,1340.0,1339.9,0.1054291]
[1673285936371,15.84135192,1340.0,1339.9,0.1054291]
[1673285936603,16.95654817,1340.0,1339.9,0.1054291]
[1673285936808,14.16795064,1340.0,1339.9,0.1054291]
[1673285937006,21.63063064,1340.0,1339.9,0.1054291]
[1673285938580,23.30439422,1340.0,1339.9,0.1054291]
[1673285939630,21.63063064,1340.0,1339.9,0.1054291]
[1673285939833,23.30439059,1340.0,1339.9,0.1054291]
[1673285940254,15.84171059,1340.0,1339.9,0.1054291]
[1673285941206,8.37903059,1340.0,1339.9,0.1054291]
[1673285941445,30.76669861,1340.0,1339.9,0.1054291]
[1673285941660,31.88190817,1340.0,1339.9,0.1054291]
[1673285941988,38.52226696,1340.0,1339.9,0.1054291]
[1673285942200,43.40539445,1340.0,1339.9,0.1054291]
[1673285942357,43.40539445,1340.0,1339.9,0.07551111]
[1673285942829,35.86362387,1340.0,1339.9,0.07551111]
[1673285943142,10.26423276,1340.0,1339.9,0.07551111]
[1673285943357,25.18959276,1340.0,1339.9,0.07551111]
[1673285943955,32.65227276,1340.0,1339.9,0.07551111]
[1673285944670,29.86289885,1340.0,1339.9,0.07551111]
[1673285944881,38.33228451,1340.0,1339.9,0.07551111]
[1673285946773,34.98955949,1340.0,1339.9,0.07551111]
[1673285947211,38.33228451,1340.0,1339.9,0.07551111]
[1673285947730,34.98955949,1340.0,1339.9,0.07551111]
[1673285947945,2.85567509,1340.0,1339.9,7.53875111]
[1673285948157,2.85567509,1340.0,1339.9,0.14151111]
[1673285948158,3.90578174,1340.0,1339.9,0.14151111]
[1673285948499,3.90578174,1340.0,1339.9,0.07551111]
[1673285948825,3.90576633,1340.0,1339.9,0.07551111]
[1673285948979,3.90574845,1340.0,1339.9,0.07551111]
[1673285950446,2.2318073,1340.0,1339.9,0.07551111]
[1673285951265,25.73761509,1340.0,1339.9,0.07551111]
[1673285951423,30.2941901,1340.0,1339.9,0.07551111]
[1673285951741,28.83351501,1340.0,1339.9,0.07551111]
[1673285952344,31.62545258,1340.0,1339.9,0.07551111]
[1673285953128,16.70009258,1340.0,1339.9,0.07551111]
[1673285953491,24.16277258,1340.0,1339.9,0.07551111]
[1673285954161,31.62545258,1340.0,1339.9,0.07551111]
[1673285954477,24.16277258,1340.0,1339.9,0.07551111]
[1673285955060,22.83377258,1340.0,1339.9,0.07551111]
[1673285955304,2.85851931,1340.0,1339.9,0.07551111]
[1673285955631,3.90705436,1340.0,1339.9,15.00199111]
[1673285955846,3.90712316,1340.0,1339.9,22.53123111]
[1673285956216,3.90712316,1340.0,1339.9,7.60475111]
[1673285956420,3.90712316,1340.0,1339.9,15.06799111]
[1673285956670,3.90712316,1340.0,1339.9,22.53123111]
[1673285956879,3.90712316,1340.0,1339.9,15.06799111]
[1673285957634,5.55665554,1340.0,1339.9,7.60475111]
[1673285957807,1.71553238,1340.0,1339.9,26.32889175]
[1673285958019,1.64953238,1340.0,1339.9,26.55889175]
[1673285959522,1.11650062,1340.0,1339.9,26.55889175]
[1673285960053,2.79100447,1340.0,1339.9,7.60475111]
[1673285960416,2.79100447,1340.0,1339.9,0.14151111]
[1673285960631,2.79100447,1340.0,1339.9,7.53875111]
[1673285960882,2.79100447,1340.0,1339.9,7.60475111]
[1673285961105,2.79100447,1340.0,1339.9,22.53123111]
[1673285961414,2.79100447,1340.0,1339.9,7.60475111]
[1673285961586,2.79100447,1340.0,1339.9,0.14151111]
[1673285961803,2.79100447,1340.0,1339.9,7.53875111]
[1673285962038,2.79100447,1340.0,1339.9,22.53123111]
[1673285962246,2.79100447,1340.0,1339.9,15.06799111]
[1673285962888,2.79100447,1340.0,1339.9,22.53123111]
[1673285963064,1.11650062,1340.0,1339.9,22.53123111]
[1673285963278,1.11650062,1340.0,1339.9,23.85823111]
[1673285963993,2.79100447,1340.0,1339.9,0.14151111]
[1673285964257,9.13718385,1340.0,1339.9,0.07551111]
[1673285964567,1.74050385,1340.0,1339.9,0.07551111]
[1673285964725,1.67450385,1340.0,1339.9,0.07551111]
[1673285965397,1.67450385,1340.0,1339.9,7.53875111]
[1673285965576,1.67450385,1340.0,1339.9,7.60475111]
[1673285966291,2.79109655,1340.0,1339.9,15.06799111]
[1673285966708,1.67450385,1340.0,1339.9,15.06799111]
[1673285967095,1.67450385,1340.0,1339.9,22.53123111]
[1673285967305,2.79109952,1340.0,1339.9,22.53123111]
[1673285967960,2.79109952,1340.0,1339.9,7.60475111]
[1673285968147,2.79109952,1340.0,1339.9,15.06799111]
[1673285968595,1.67450385,1340.0,1339.9,15.06799111]
[1673285968989,1.67450385,1340.0,1339.9,0.13834983]
[1673285969192,1.67450385,1340.0,1339.9,7.53558983]
[1673285969405,1.67450385,1340.0,1339.9,15.06482983]
[1673285970006,2.79081184,1340.0,1339.9,7.60158983]
[1673285970143,2.79046221,1340.0,1339.9,15.06482983]
[1673285970358,2.79046221,1340.0,1339.9,7.60158983]
[1673285971513,1.11595836,1340.0,1339.9,7.60158983]
[1673285971742,1.11595836,1340.0,1339.9,15.06482983]
[1673285972078,2.79046221,1340.0,1339.9,15.06482983]
[1673285972387,2.79046221,1340.0,1339.9,0.13834983]
[1673285972388,9.13718385,1340.0,1339.9,0.13834983]
[1673285972598,9.20318385,1340.0,1339.9,0.07234983]
[1673285972766,18.89848316,1340.0,1339.9,0.07234983]
[1673285973184,24.12854385,1340.0,1339.9,0.07234983]
[1673285973815,18.89848316,1340.0,1339.9,0.07234983]
[1673285973959,11.43580316,1340.0,1339.9,0.07234983]
[1673285974172,10.13078528,1340.0,1339.9,0.07234983]
[1673285974362,25.05614528,1340.0,1339.9,0.07234983]
[1673285974565,32.51882528,1340.0,1339.9,0.07234983]
[1673285975188,34.74916816,1340.0,1339.9,0.07234983]
[1673285975827,35.04916816,1340.0,1339.9,0.07234983]
[1673285976030,31.25150752,1340.0,1339.9,0.07234983]
[1673285976241,8.86346752,1340.0,1339.9,0.07234983]
[1673285977021,23.78882752,1340.0,1339.9,0.07234983]
[1673285977339,31.25150752,1340.0,1339.9,0.07234983]
[1673285977572,23.78882752,1340.0,1339.9,0.07234983]
[1673285977725,2.59634288,1340.0,1339.9,0.07234983]
[1673285977918,2.53034288,1340.0,1339.9,0.07234983]
[1673285978397,4.20283375,1340.0,1339.9,0.07234983]
[1673285980972,5.32228045,1340.0,1339.9,0.07234983]
[1673285981184,30.29456208,1340.0,1339.9,0.07234983]
[1673285981408,28.0642192,1340.0,1339.9,0.07234983]
[1673285982662,31.86187984,1340.0,1339.9,0.07234983]
[1673285984159,29.06994227,1340.0,1339.9,0.07234983]
[1673285984356,31.85572606,1340.0,1339.9,0.07234983]
[1673285984944,29.62984227,1340.0,1339.9,0.07234983]
[1673285985072,29.62984227,1340.0,1339.9,0.05071004]
[1673285985073,39.37467723,1340.0,1339.9,0.05071004]
[1673285985283,46.83735723,1340.0,1339.9,0.05071004]
[1673285985534,50.39447807,1340.0,1339.9,0.05071004]
[1673285985726,46.49463221,1340.0,1339.9,0.05071004]
[1673285985952,50.39447807,1340.0,1339.9,0.05071004]
[1673285986587,49.83370265,1340.0,1339.9,0.05071004]
[1673285987611,46.08959271,1340.0,1339.9,0.05071004]
[1673285988050,49.83370265,1340.0,1339.9,0.05071004]
[1673285988275,46.08959271,1340.0,1339.9,0.05071004]
[1673285989626,49.83370265,1340.0,1339.9,0.05071004]
[1673285990376,46.08959271,1340.0,1339.9,0.05071004]
[1673285991334,48.57998939,1340.0,1339.9,0.00071004]
[1673285991541,52.47983525,1340.0,1339.9,0.00071004]
[1673285991695,48.57998939,1340.0,1339.9,0.00071004]
[1673285992443,51.91680641,1340.0,1339.9,0.00071004]
[1673285994481,52.47983525,1340.0,1339.9,0.00071004]
[1673285994694,3.5,1339.9,1339.8,0.06240024]
[1673285994886,44.44856598,1339.9,1339.8,0.06240024]
[1673285995083,44.51456598,1339.9,1339.8,0.04375196]
[1673285995561,48.97327958,1339.9,1339.8,0.04375196]
[1673285995703,56.05267592,1339.9,1339.8,0.04375196]
[1673285995913,56.8090331,1339.9,1339.8,0.04375196]
[1673285996126,53.4737467,1339.9,1339.8,0.04375196]
[1673285996423,56.80757447,1339.9,1339.8,0.04375196]
[1673285997605,53.4737467,1339.9,1339.8,0.04375196]
[1673285998169,53.4832626,1339.9,1339.8,0.04375196]
[1673285998486,56.81544575,1339.9,1339.8,0.04375196]
[1673286001533,56.81544575,1339.9,1339.8,0.01841018]
[1673286002691,58.14444575,1339.9,1339.8,1.8e-07]
[1673286002848,57.04544575,1339.9,1339.8,1.8e-07]
[1673286004249,57.61310846,1339.9,1339.8,1.8e-07]
[1673286004463,53.7132626,1339.9,1339.8,1.8e-07]
[1673286005190,57.61310846,1339.9,1339.5,0.14317833]
[1673286005401,5.21484121,1339.6,1339.5,0.14317833]
[1673286005606,37.27278133,1339.6,1339.5,0.14317833]
[1673286006003,41.58878133,1339.6,1339.5,0.14317833]
[1673286006212,43.25421061,1339.6,1339.5,0.14317833]
[1673286006424,41.58878133,1339.6,1339.5,0.14317833]
[1673286006642,47.74650712,1339.6,1339.5,0.14317833]
[1673286008450,46.41750712,1339.6,1339.5,0.14317833]
[1673286009092,44.76173545,1339.6,1339.5,0.14317833]
[1673286010991,52.03780343,1339.6,1339.5,0.14317833]
[1673286011195,53.35980343,1339.6,1339.5,0.14317833]
[1673286012389,49.61636764,1339.6,1339.5,0.14317833]
[1673286012762,53.36047758,1339.6,1339.5,0.14317833]
[1673286012973,51.13932274,1339.6,1339.5,0.14317833]
[1673286013401,51.13932274,1339.6,1339.5,8.33e-06]
[1673286013718,25.89641,1339.5,1339.4,0.86735499]
[1673286013937,38.42425927,1339.5,1339.4,0.86735499]
[1673286014163,41.19986013,1339.5,1339.4,0.86735499]
[1673286014340,49.27297007,1339.5,1339.4,4.99e-06]
[1673286014548,45.59257003,1339.5,1339.3,0.143202]
[1673286014806,3.5,1339.3,1339.2,1.22e-06]
[1673286015002,32.6915739,1339.3,1339.2,1.22e-06]
[1673286015235,35.7575739,1339.3,1339.2,1.22e-06]
[1673286015600,38.7341621,1339.3,1339.2,1.22e-06]
[1673286015812,38.7339658,1339.3,1339.2,1.22e-06]
[1673286016020,44.27616567,1339.3,1339.2,1.22e-06]
[1673286016250,20.00933089,1339.3,1339.2,1.22e-06]
[1673286016459,9.63813102,1339.3,1339.2,1.22e-06]
[1673286016701,7.97315406,1339.3,1339.2,1.22e-06]
[1673286017082,9.63813102,1339.3,1339.2,1.22e-06]
[1673286017290,11.64207342,1339.3,1339.2,1.22e-06]
[1673286017499,19.10865342,1339.3,1339.2,1.22e-06]
[1673286017932,18.86065342,1339.3,1339.2,1.22e-06]
[1673286018266,26.32723342,1339.3,1339.2,1.22e-06]
[1673286019066,2.818,1339.3,1339.2,1.22e-06]
[1673286019282,17.68516,1339.3,1339.2,1.22e-06]
[1673286019491,17.75116,1339.3,1339.2,1.22e-06]
[1673286019909,25.21774,1339.3,1339.2,1.22e-06]
[1673286020120,22.65831406,1339.3,1339.2,1.22e-06]
[1673286020329,26.34918486,1339.3,1339.2,1.22e-06]
[1673286020550,35.48074182,1339.3,1339.2,1.22e-06]
[1673286020810,36.39897728,1339.2,1339.1,0.14639402]
[1673286020965,36.46497728,1339.2,1339.1,0.14639402]
[1673286021547,21.53069728,1339.2,1339.1,0.14639402]
[1673286022898,28.99783728,1339.2,1339.1,0.14639402]
[1673286023064,21.53069728,1339.2,1339.1,0.14639402]
[1673286023524,21.53069728,1339.2,1338.9,22.36792402]
[1673286024058,28.99783728,1339.2,1338.9,14.89935402]
[1673286024427,28.99783728,1339.2,1338.9,7.43085402]
[1673286024857,28.99783728,1339.2,1338.9,14.89966402]
[1673286025103,21.53069728,1339.2,1338.9,22.36847402]
[1673286025319,14.06355728,1339.2,1338.9,22.36847402]
[1673286025714,14.06355728,1339.2,1338.9,23.68747402]
[1673286026229,21.53071728,1339.2,1338.9,23.68747402]
[1673286026865,21.53074728,1339.2,1338.9,23.68747402]
[1673286027714,36.46507728,1339.2,1338.9,8.74985402]
[1673286027927,36.46507728,1339.2,1338.9,1.385]
[1673286028182,36.46507728,1339.2,1338.9,1.319]
[1673286028338,36.46507728,1339.2,1338.9,7.46867]
[1673286028547,37.5745707,1339.2,1338.9,15.00348]
[1673286028766,30.1073807,1339.2,1338.9,15.00348]
[1673286028999,37.5745707,1339.2,1338.9,7.53467]
[1673286029588,37.5745707,1339.2,1338.9,0.066]
[1673286029818,37.5745707,1339.2,1338.8,29.79207745]
[1673286030584,37.5745707,1339.2,1338.8,35.93244745]
[1673286030895,39.23954766,1339.2,1338.8,20.99384745]
[1673286031478,39.23954766,1339.2,1338.8,28.46321745]
[1673286033524,1.30259941,1339.1,1338.8,28.30921745]
[1673286033711,16.23834941,1339.1,1338.8,28.30921745]
[1673286033905,16.30434941,1339.1,1338.8,28.30921745]
[1673286034336,16.30434941,1339.1,1338.8,13.12090745]
[1673286034575,23.77235941,1339.1,1338.8,20.59023745]
[1673286034773,17.41384283,1339.1,1338.8,28.05960745]
[1673286035157,17.41384283,1339.1,1338.8,20.59023745]
[1673286035367,17.41384283,1339.1,1338.8,28.05960745]
[1673286035825,24.88185283,1339.1,1338.8,20.59023745]
[1673286036014,24.88185283,1339.1,1338.8,13.12090745]
[1673286036245,17.41384283,1339.1,1338.8,20.59015745]
[1673286036653,17.41384283,1339.1,1338.8,28.05952745]
[1673286037186,17.26384283,1339.1,1338.8,28.05952745]
[1673286037735,9.79583283,1339.1,1338.8,28.05952745]
[1673286037887,2.32809283,1339.1,1338.8,35.52889745]
[1673286038096,2.26209283,1339.1,1338.8,35.52889745]
[1673286038323,2.26209283,1339.1,1338.8,38.30894769]
[1673286038782,1.15259941,1339.1,1339.0,1.317]
[1673286038953,1.15259941,1339.1,1339.0,31.19]
[1673286039196,1.15259941,1339.1,1339.0,23.78775]
[1673286040592,1.15259941,1339.1,1339.0,25.11675]
[1673286041377,14.06355728,1339.2,1339.1,3.5]
[1673286041698,14.06355728,1339.2,1339.1,4.823]
[1673286041867,14.06355728,1339.2,1339.1,12.03262595]
[1673286042027,14.06355728,1339.2,1339.1,34.50172595]
[1673286042392,14.06355728,1339.2,1339.1,28.18106064]
[1673286042772,14.06355728,1339.2,1339.1,30.03404934]
[1673286042968,14.06355728,1339.2,1339.1,28.18106064]
[1673286043425,14.06355728,1339.2,1339.1,19.0663098]
[1673286043748,14.06355728,1339.2,1339.1,17.21336064]
[1673286044080,14.06355728,1339.2,1339.1,24.68106064]
[1673286044600,14.06355728,1339.2,1339.1,17.21336064]
[1673286045280,14.06355728,1339.2,1339.1,9.74566064]
[1673286045520,14.11355728,1339.2,1339.1,5.948]
[1673286045731,14.06355728,1339.2,1339.1,4.625]
[1673286045939,14.06355728,1339.2,1339.1,4.329]
[1673286048126,14.06355728,1339.2,1339.1,3.0]
[1673286048902,14.06355728,1339.2,1339.1,10.4677]
[1673286049119,14.06355728,1339.2,1339.1,18.0014]
[1673286049483,14.06355728,1339.2,1339.1,10.5337]
[1673286050697,14.06355728,1339.2,1339.1,18.0014]
[1673286051096,14.06355728,1339.2,1339.1,19.8543399]
[1673286051314,14.06355728,1339.2,1339.1,18.0014]
[1673286051483,14.06355728,1339.2,1339.1,19.85437084]
[1673286051858,14.06355728,1339.2,1339.1,27.3220763]
[1673286052168,14.06355728,1339.2,1339.1,19.8543763]
[1673286052326,14.06355728,1339.2,1339.1,18.0014]
[1673286053272,14.06355728,1339.2,1339.1,25.4691]
[1673286053487,14.06355728,1339.2,1339.1,18.0014]
[1673286053846,14.06355728,1339.2,1339.1,10.5337]
[1673286054213,14.06355728,1339.2,1339.1,18.0014]
[1673286054425,14.06355728,1339.2,1339.1,25.4691]
[1673286055110,14.06355728,1339.2,1339.1,30.82376064]
[1673286055472,14.06355728,1339.2,1339.1,12.0907]
[1673286055823,14.11355728,1339.2,1339.1,11.8607]
[1673286056034,14.06355728,1339.2,1339.1,11.8607]
[1673286056628,14.06355728,1339.2,1339.1,4.393]
[1673286056862,14.06355728,1339.2,1339.1,3.0]
[1673286057125,21.53069728,1339.2,1339.1,3.0]
[1673286057289,14.06355728,1339.2,1339.1,3.0]
[1673286060229,14.06355728,1339.2,1339.1,10.4677]
[1673286060477,14.06355728,1339.2,1339.1,10.5337]
[1673286061016,14.06355728,1339.2,1339.1,18.0014]
[1673286061207,14.06355728,1339.2,1339.1,3.066]
[1673286061423,14.06355728,1339.2,1339.1,3.0]
[1673286062009,22.6401907,1339.2,1339.1,3.0]
[1673286063279,15.1730507,1339.2,1339.1,3.0]
[1673286064330,15.1730507,1339.2,1339.0,29.0022]
[1673286064489,22.6403407,1339.2,1339.0,14.066]
[1673286064701,22.6403407,1339.2,1339.0,21.53414]
[1673286065024,39.23974766,1339.2,1339.0,0.066]
[1673286065178,39.23974766,1339.2,1338.9,0.066]
[1673286065179,23.51259342,1339.1,1338.9,0.066]
[1673286065386,23.51259342,1339.1,1338.8,28.82427745]
[1673286065387,10.44714526,1339.1,1338.8,28.82427745]
[1673286065597,1.3144683,1339.1,1338.8,28.82427745]
[1673286065807,1.24094025,1339.0,1338.8,13.12090745]
[1673286066242,1.24094025,1339.0,1338.8,20.59023745]
[1673286066489,0.13144683,1339.0,1338.8,20.59023745]
[1673286066810,8.70919025,1339.0,1338.8,0.55130745]
[1673286067015,16.73782025,1339.0,1338.8,0.55130745]
[1673286067221,1.67378203,1338.9,1338.8,0.48530745]
[1673286069108,1.52378203,1338.9,1338.8,0.48530745]
[1673286070869,8.99259203,1338.9,1338.8,0.48530745]
[1673286071080,16.52740203,1338.9,1338.8,0.48530745]
[1673286071426,25.10570545,1338.9,1338.8,0.48530745]
[1673286071638,25.8146516,1338.9,1338.8,0.43530745]
[1673286071936,26.37013514,1338.9,1338.8,0.43530745]
[1673286072105,27.48324527,1338.9,1338.8,0.43530745]
[1673286074052,25.67923806,1338.9,1338.8,0.43530745]
[1673286076823,24.56612793,1338.9,1338.8,0.43530745]
[1673286079209,25.67923806,1338.9,1338.8,0.43530745]
[1673286080191,9.62850793,1338.9,1338.8,0.43530745]
[1673286081009,2.15969793,1338.9,1338.8,0.43530745]
[1673286081226,2.09369793,1338.9,1338.8,0.43530745]
[1673286082033,17.03131793,1338.9,1338.8,0.43530745]
[1673286082277,17.09731793,1338.9,1338.8,0.43530745]
[1673286082816,9.62850793,1338.9,1338.8,0.43530745]
[1673286084373,2.15969793,1338.9,1338.8,0.43530745]
[1673286084584,2.09369793,1338.9,1338.8,0.43530745]